bitfinex/quotes_BTCUSD_20240701
["timestamp","ask_amount","ask_price","bid_price","bid_amount"]
[1719864450617,1.92489748,63353.0,63352.0,0.001124]
[1719864452118,2.24058848,63353.0,63352.0,0.001124]
[1719864453468,2.54058848,63353.0,63352.0,0.001124]
[1719864453670,2.24058848,63353.0,63352.0,0.001124]
[1719864455893,2.54058848,63353.0,63352.0,0.001124]
[1719864456128,3.01861846,63353.0,63352.0,0.001124]
[1719864456412,3.06238015,63353.0,63352.0,0.001124]
[1719864456638,3.01861846,63353.0,63352.0,0.001124]
[1719864458334,2.71861846,63353.0,63352.0,0.001124]
[1719864458553,3.01861846,63353.0,63352.0,0.001124]
[1719864459486,3.02834642,63353.0,63352.0,0.001124]
[1719864460677,2.18621644,63353.0,63352.0,0.001124]
[1719864460873,2.25031644,63353.0,63352.0,0.001124]
[1719864461239,2.2503028,63353.0,63352.0,0.001124]
[1719864462463,2.25028438,63353.0,63352.0,0.001124]
[1719864465815,2.25031112,63353.0,63352.0,0.001124]
[1719864467801,1.04913812,63353.0,63352.0,0.001124]
[1719864468000,0.88157048,63353.0,63352.0,0.862764]
[1719864471862,0.88157048,63353.0,63352.0,0.547068]
[1719864473056,0.88257048,63353.0,63352.0,0.561068]
[1719864474645,0.88257048,63353.0,63352.0,0.015124]
[1719864474646,1.29831211,63353.0,63352.0,0.015124]
[1719864478595,1.28861548,63353.0,63352.0,0.015124]
[1719864478725,1.2983272,63353.0,63352.0,0.015124]
[1719864478927,1.28861548,63353.0,63352.0,0.015124]
[1719864479130,1.29832723,63353.0,63352.0,0.015124]
[1719864479335,1.61401823,63353.0,63352.0,0.015124]
[1719864480174,1.42991823,63353.0,63352.0,0.015124]
[1719864480398,1.11422723,63353.0,63352.0,0.015124]
[1719864480985,1.10451548,63353.0,63352.0,0.015124]
[1719864481186,1.11423217,63353.0,63352.0,0.015124]
[1719864481563,0.89228717,63353.0,63352.0,0.971364]
[1719864481966,0.88257048,63353.0,63352.0,0.655668]
[1719864482168,0.88257048,63353.0,63352.0,0.015124]
[1719864482550,0.97667048,63353.0,63352.0,0.015124]
[1719864483553,1.13451548,63353.0,63352.0,0.015124]
[1719864483759,1.94319381,63353.0,63352.0,0.015124]
[1719864484205,1.45990463,63353.0,63352.0,0.015124]
[1719864485347,1.42990463,63353.0,63352.0,0.015124]
[1719864485863,1.36580463,63353.0,63352.0,0.015124]
[1719864486714,1.39580463,63353.0,63352.0,0.015124]
[1719864487492,1.39581685,63353.0,63352.0,0.015124]
[1719864487947,1.36581685,63353.0,63352.0,0.015124]
[1719864488923,1.39581685,63353.0,63352.0,0.015124]
[1719864490687,1.38610648,63353.0,63352.0,0.015124]
[1719864490813,1.39581478,63353.0,63352.0,0.015124]
[1719864491020,1.38610648,63353.0,63352.0,0.015124]
[1719864491200,1.39581406,63353.0,63352.0,0.015124]
[1719864491608,1.71150506,63353.0,63352.0,0.015124]
[1719864491818,2.19659606,63353.0,63352.0,0.015124]
[1719864492284,2.2683252,63353.0,63352.0,0.015124]
[1719864492687,2.2683252,63353.0,63352.0,0.001124]
[1719864492928,2.19559606,63353.0,63352.0,0.001124]
[1719864493165,2.19559606,63353.0,63352.0,0.005124]
[1719864493282,2.26738353,63353.0,63352.0,0.005124]
[1719864493480,2.23950475,63353.0,63352.0,0.001124]
[1719864493686,2.2674418,63353.0,63352.0,0.001124]
[1719864493881,2.27044281,63353.0,63352.0,0.001124]
[1719864494085,2.19865534,63353.0,63352.0,0.001124]
[1719864494488,2.26741707,63353.0,63352.0,0.001124]
[1719864494699,2.56741707,63353.0,63352.0,0.001124]
[1719864494903,2.72751707,63353.0,63352.0,0.001124]
[1719864496001,3.20854705,63353.0,63352.0,0.001124]
[1719864496331,2.89285605,63353.0,63352.0,0.001124]
[1719864496532,3.20854705,63353.0,63352.0,0.001124]
[1719864496938,2.59285605,63353.0,63352.0,0.001124]
[1719864499098,2.02925534,63353.0,63352.0,0.001124]
[1719864499454,2.02925534,63353.0,63352.0,0.002124]
[1719864499455,2.03625534,63353.0,63352.0,0.002124]
[1719864502497,1.72056434,63353.0,63352.0,0.002124]
[1719864502702,1.72056434,63353.0,63352.0,0.171124]
[1719864502898,1.40487334,63353.0,63352.0,0.002124]
[1719864503360,0.90137512,63353.0,63352.0,0.002124]
[1719864503515,1.05622012,63353.0,63352.0,0.171124]
[1719864503714,1.08622012,63353.0,63352.0,0.171124]
[1719864503910,1.05722012,63353.0,63352.0,0.171124]
[1719864504212,1.08722012,63353.0,63352.0,0.171124]
[1719864504679,1.08022012,63353.0,63352.0,0.170124]
[1719864505041,1.08622012,63353.0,63352.0,0.171124]
[1719864505244,1.08522012,63353.0,63352.0,0.171124]
[1719864505450,1.07922012,63353.0,63352.0,0.170124]
[1719864505668,1.08122012,63353.0,63352.0,0.170124]
[1719864506137,1.08122012,63353.0,63352.0,0.172124]
[1719864506536,1.08121201,63353.0,63352.0,0.172124]
[1719864508417,1.05121201,63353.0,63352.0,0.172124]
[1719864509502,2.25598501,63353.0,63352.0,0.003124]
[1719864509955,2.25597643,63353.0,63352.0,0.003124]
[1719864510184,2.29978524,63353.0,63352.0,0.003124]
[1719864511342,2.59978524,63353.0,63352.0,0.003124]
[1719864511550,3.07781522,63353.0,63352.0,0.003124]
[1719864511776,3.2019801,63353.0,63352.0,0.003124]
[1719864513233,3.20208207,63353.0,63352.0,0.003124]
[1719864513434,3.16422727,63353.0,63352.0,0.003124]
[1719864513641,3.20206935,63353.0,63352.0,0.003124]
[1719864516216,3.16422727,63353.0,63352.0,0.003124]
[1719864516428,3.20210088,63353.0,63352.0,0.003124]
[1719864516879,2.74190088,63353.0,63352.0,0.003124]
[1719864518624,2.2638709,63353.0,63352.0,0.003124]
[1719864519616,2.2639335,63353.0,63352.0,0.003124]
[1719864521725,2.5639335,63353.0,63352.0,0.003124]
[1719864521885,2.26394955,63353.0,63352.0,0.003124]
[1719864522095,2.56394955,63353.0,63352.0,0.003124]
[1719864522726,2.26394955,63353.0,63352.0,0.003124]
[1719864522929,2.52599729,63353.0,63352.0,0.003124]
[1719864523142,2.5639366,63353.0,63352.0,0.003124]
[1719864526400,2.53589585,63353.0,63352.0,0.003124]
[1719864526589,2.56394254,63353.0,63352.0,0.003124]
[1719864526784,2.56394293,63353.0,63352.0,0.003124]
[1719864527471,2.26394293,63353.0,63352.0,0.003124]
[1719864529440,2.22599729,63353.0,63352.0,0.003124]
[1719864529646,2.26393085,63353.0,63352.0,0.003124]
[1719864531174,2.07023085,63353.0,63352.0,0.003124]
[1719864531344,1.0513067,63353.0,63352.0,0.003124]
[1719864531524,1.0813067,63353.0,63352.0,0.003124]
[1719864531842,1.0513067,63353.0,63352.0,0.003124]
[1719864532044,0.8934617,63353.0,63352.0,0.166824]
[1719864532427,1.0513067,63353.0,63352.0,0.166824]
[1719864532784,1.05120865,63353.0,63352.0,0.166824]
[1719864533034,1.08120865,63353.0,63352.0,0.166824]
[1719864533500,1.05120865,63353.0,63352.0,0.166824]
[1719864534743,1.08120865,63353.0,63352.0,0.166824]
[1719864535793,1.39689965,63353.0,63352.0,0.166824]
[1719864536015,1.38710648,63353.0,63352.0,0.166824]
[1719864536217,1.39690211,63353.0,63352.0,0.166824]
[1719864538873,1.39690211,63353.0,63352.0,0.094824]
[1719864539279,1.39690558,63353.0,63352.0,0.094824]
[1719864539686,1.38710648,63353.0,63352.0,0.094824]
[1719864539866,1.39689743,63353.0,63352.0,0.094824]
[1719864540465,1.39689743,63353.0,63352.0,0.003124]
[1719864540666,2.02827943,63353.0,63352.0,0.003124]
[1719864540888,2.52880311,63353.0,63352.0,0.003124]
[1719864541069,2.55676606,63353.0,63352.0,0.003124]
[1719864541713,2.55687229,63353.0,63352.0,0.003124]
[1719864543767,2.71707229,63353.0,63352.0,0.003124]
[1719864544377,3.19510227,63353.0,63352.0,0.003124]
[1719864544787,3.26572403,63353.0,63352.0,0.003124]
[1719864545069,3.195097,63353.0,63352.0,0.003124]
[1719864545743,2.734897,63353.0,63352.0,0.001124]
[1719864545946,3.199097,63353.0,63352.0,0.001124]
[1719864546381,3.31474655,63353.0,63352.0,0.001124]
[1719864546500,3.31474655,63353.0,63352.0,0.002124]
[1719864546706,3.32374655,63353.0,63352.0,0.002124]
[1719864548141,3.32380592,63353.0,63352.0,0.002124]
[1719864550472,4.20095692,63353.0,63352.0,0.002124]
[1719864550695,1.4753743,63335.0,63334.0,0.4662]
[1719864550858,0.861794,63332.0,63331.0,1.2774]
[1719864551058,0.87168753,63332.0,63331.0,1.2774]
[1719864551321,1.1296163,63332.0,63331.0,1.2774]
[1719864551499,1.15480636,63332.0,63331.0,1.2774]
[1719864551730,1.14980636,63332.0,63331.0,1.4395]
[1719864553069,1.18080636,63332.0,63331.0,1.4485]
[1719864553281,1.18180636,63332.0,63331.0,1.4515]
[1719864553488,1.15180636,63332.0,63331.0,1.4515]
[1719864554441,1.14193824,63332.0,63331.0,1.4515]
[1719864554594,1.14183824,63332.0,63331.0,1.4515]
[1719864554796,1.14183824,63332.0,63331.0,0.1741]
[1719864555024,0.82604224,63332.0,63331.0,0.1741]
[1719864555433,0.82594224,63332.0,63331.0,0.1741]
[1719864556113,0.85594224,63332.0,63331.0,0.1741]
[1719864556739,0.82594224,63332.0,63331.0,0.175024]
[1719864557320,0.85594224,63332.0,63331.0,0.175024]
[1719864558261,1.17173824,63332.0,63331.0,0.175024]
[1719864559326,0.82594224,63332.0,63331.0,0.175024]
[1719864559992,0.82584224,63332.0,63331.0,0.175024]
[1719864562422,0.66824424,63332.0,63331.0,0.175024]
[1719864566277,0.66824424,63332.0,63331.0,0.175124]
[1719864566845,0.66834424,63332.0,63331.0,0.175124]
[1719864567265,0.67828212,63332.0,63331.0,0.175124]
[1719864568810,0.70828212,63332.0,63331.0,0.175124]
[1719864570500,0.7082325,63332.0,63331.0,0.175124]
[1719864571123,0.7082325,63332.0,63331.0,0.013024]
[1719864571695,0.7082325,63332.0,63331.0,0.013124]
[1719864572291,0.6782325,63332.0,63331.0,0.013124]
[1719864573356,0.7082325,63332.0,63331.0,0.013124]
[1719864573728,0.70821704,63332.0,63331.0,0.013124]
[1719864574160,0.67821704,63332.0,63331.0,0.013124]
[1719864575530,0.70821704,63332.0,63331.0,0.013124]
[1719864577076,0.70821839,63332.0,63331.0,0.013124]
[1719864577393,0.70821838,63332.0,63331.0,0.013124]
[1719864579458,0.67821838,63332.0,63331.0,0.013124]
[1719864580241,0.68807641,63332.0,63331.0,0.013124]
[1719864581260,0.68807641,63332.0,63331.0,0.013124]
[1719864581623,0.68807641,63332.0,63331.0,0.171024]
[1719864581828,0.68807641,63332.0,63331.0,0.802626]
[1719864581829,0.33675411,63332.0,63331.0,0.802626]
[1719864582041,0.39026292,63332.0,63331.0,0.966826]
[1719864582885,0.380388,63332.0,63331.0,0.966826]
[1719864583085,0.39024576,63332.0,63331.0,0.966826]
[1719864583911,0.75216806,63332.0,63331.0,0.171024]
[1719864584426,0.75216806,63332.0,63331.0,0.013124]
[1719864584635,0.75217464,63332.0,63331.0,0.013124]
[1719864586153,0.74230858,63332.0,63331.0,0.013124]
[1719864586471,0.74234549,63332.0,63331.0,0.013124]
[1719864587459,0.67824549,63332.0,63331.0,0.013124]
[1719864587868,0.67824296,63332.0,63331.0,0.013124]
[1719864588559,0.67908296,63332.0,63331.0,0.013124]
[1719864591001,0.67918296,63332.0,63331.0,0.013124]
[1719864591202,0.67919636,63332.0,63331.0,0.013124]
[1719864591618,0.66928424,63332.0,63331.0,0.013124]
[1719864591792,0.6791961,63332.0,63331.0,0.013124]
[1719864594325,0.66928424,63332.0,63331.0,0.013124]
[1719864594548,0.67919564,63332.0,63331.0,0.013124]
[1719864595517,0.86709364,63332.0,63331.0,0.013124]
[1719864595735,0.83709364,63332.0,63331.0,0.013124]
[1719864596083,1.18288964,63332.0,63331.0,0.013124]
[1719864596294,1.25088964,63332.0,63331.0,0.013124]
[1719864596718,1.22088964,63332.0,63331.0,0.013124]
[1719864597563,1.21097824,63332.0,63331.0,0.013124]
[1719864597768,1.22083247,63332.0,63331.0,0.013124]
[1719864600470,0.90503647,63332.0,63331.0,0.013124]
[1719864600684,0.67913706,63332.0,63331.0,0.013124]
[1719864600891,0.02821476,63332.0,63331.0,1.13110802]
[1719864601107,0.31796194,63332.0,63331.0,1.51750902]
[1719864601309,0.31796194,63332.0,63331.0,1.71983037]
[1719864602076,0.31796194,63332.0,63331.0,1.64868523]
[1719864602270,0.66928424,63332.0,63331.0,0.45960021]
[1719864602473,0.66928424,63332.0,63331.0,0.257824]
[1719864603033,0.8118603,63332.0,63331.0,0.013124]
[1719864603424,1.45878434,63332.0,63331.0,0.013124]
[1719864603596,1.62128434,63332.0,63331.0,0.013124]
[1719864603808,0.31619434,63332.0,63331.0,0.176024]
[1719864604013,0.66929434,63332.0,63331.0,0.649725]
[1719864604353,0.01837204,63332.0,63331.0,1.44366598]
[1719864604553,0.01837204,63332.0,63331.0,1.49108403]
[1719864604690,0.01837204,63332.0,63331.0,1.49658403]
[1719864604893,0.01837204,63332.0,63331.0,1.49108403]
[1719864605119,0.01837204,63332.0,63331.0,1.44916598]
[1719864605323,0.01837204,63332.0,63331.0,1.52029306]
[1719864605689,0.01837204,63332.0,63331.0,1.44916598]
[1719864605858,0.01837204,63332.0,63331.0,1.44366598]
[1719864607470,0.01837204,63332.0,63331.0,1.4910488]
[1719864608621,0.00304,63332.0,63331.0,1.4910488]
[1719864609502,0.00304,63332.0,63331.0,1.49104331]
[1719864610282,0.00304,63332.0,63331.0,1.44366598]
[1719864614243,0.30264,63332.0,63331.0,1.44366598]
[1719864614445,0.31797188,63332.0,63331.0,1.44366598]
[1719864614646,0.31797188,63332.0,63331.0,1.50776598]
[1719864614851,0.30264,63332.0,63331.0,1.50776598]
[1719864615459,0.01837188,63332.0,63331.0,1.50776598]
[1719864615692,0.31797188,63332.0,63331.0,1.50776598]
[1719864616120,0.01837188,63332.0,63331.0,2.02906698]
[1719864616322,0.01837188,63332.0,63331.0,2.14678224]
[1719864616480,0.00304,63332.0,63331.0,2.15206698]
[1719864616688,0.00304,63332.0,63331.0,2.24678224]
[1719864617242,0.00204,63332.0,63331.0,2.24378224]
[1719864617576,0.00304,63332.0,63331.0,2.24678224]
[1719864618380,0.00204,63332.0,63331.0,2.20857586]
[1719864618582,0.00104,63332.0,63331.0,2.21956897]
[1719864619193,0.00204,63332.0,63331.0,2.14856698]
[1719864619362,0.00204,63332.0,63331.0,2.21956973]
[1719864619580,0.00204,63332.0,63331.0,2.14856698]
[1719864619719,0.00204,63332.0,63331.0,2.16256698]
[1719864620122,0.00204,63332.0,63331.0,1.82376598]
[1719864620525,0.00204,63332.0,63331.0,1.87109569]
[1719864622272,0.30164,63332.0,63331.0,1.82376598]
[1719864624452,0.30164,63332.0,63331.0,0.96516398]
[1719864624453,0.35514,63332.0,63331.0,0.96516398]
[1719864624662,0.37047188,63332.0,63331.0,0.96516398]
[1719864625563,0.37047188,63332.0,63331.0,0.329124]
[1719864626668,0.37047188,63332.0,63331.0,0.315124]
[1719864626967,0.36947188,63332.0,63331.0,0.315124]
[1719864627342,0.37047188,63332.0,63331.0,0.329124]
[1719864629622,0.37047188,63332.0,63331.0,0.487024]
[1719864633378,1.26318818,63332.0,63331.0,0.029124]
[1719864633581,1.33798818,63332.0,63331.0,0.029124]
[1719864633811,1.65378418,63332.0,63331.0,0.029124]
[1719864638523,2.23230768,63332.0,63331.0,0.029124]
[1719864639387,2.23230768,63332.0,63331.0,0.015124]
[1719864639588,2.23130768,63332.0,63331.0,0.001124]
[1719864639746,2.23230768,63332.0,63331.0,0.015124]
[1719864639949,2.16920768,63332.0,63331.0,0.028124]
[1719864640137,2.16820768,63332.0,63331.0,0.014124]
[1719864640542,2.16820768,63332.0,63331.0,0.019124]
[1719864641828,2.13820768,63332.0,63331.0,0.019124]
[1719864642026,2.16820768,63332.0,63331.0,0.019124]
[1719864643350,2.16720768,63332.0,63331.0,0.001124]
[1719864643933,2.16820768,63332.0,63331.0,0.010124]
[1719864644493,2.16720768,63332.0,63331.0,0.001124]
[1719864644717,2.16720768,63332.0,63331.0,0.005124]
[1719864654069,2.16160768,63332.0,63331.0,0.005124]
[1719864654491,2.46160768,63332.0,63331.0,0.005124]
[1719864654688,2.93974266,63332.0,63331.0,0.005124]
[1719864654887,3.32748906,63332.0,63331.0,0.005124]
[1719864655091,2.98364507,63332.0,63331.0,0.005124]
[1719864655410,2.23355877,63332.0,63331.0,0.005124]
[1719864655587,2.25375636,63332.0,63331.0,0.005124]
[1719864655791,2.22570768,63332.0,63331.0,0.005124]
[1719864656039,2.22570768,63332.0,63331.0,0.001124]
[1719864656212,2.22570768,63332.0,63331.0,0.004124]
[1719864656423,2.06970768,63332.0,63331.0,0.004124]
[1719864656620,2.07070768,63332.0,63331.0,0.004124]
[1719864656824,2.07070768,63332.0,63331.0,0.001124]
[1719864657020,2.06970768,63332.0,63331.0,0.001124]
[1719864657222,2.06970768,63332.0,63331.0,0.003124]
[1719864657431,2.07170768,63332.0,63331.0,0.003124]
[1719864658163,1.65741168,63332.0,63331.0,0.003124]
[1719864658920,0.86792168,63332.0,63331.0,0.003124]
[1719864659288,1.02581968,63332.0,63331.0,0.003124]
[1719864659594,0.86792168,63332.0,63331.0,0.003124]
[1719864659844,0.86792168,63332.0,63331.0,0.001124]
[1719864660038,0.86792168,63332.0,63331.0,0.79606398]
[1719864660039,0.01637188,63332.0,63331.0,0.79606398]
[1719864660269,0.21499938,63332.0,63331.0,1.11486498]
[1719864660473,0.51459938,63332.0,63331.0,1.11686498]
[1719864660645,0.51459938,63332.0,63331.0,1.11386498]
[1719864661062,0.51459938,63332.0,63331.0,1.43566598]
[1719864661395,0.51459938,63332.0,63331.0,1.43366598]
[1719864661780,0.51559938,63332.0,63331.0,1.44466598]
[1719864662163,0.51559938,63332.0,63331.0,1.12886498]
[1719864662368,0.51559938,63332.0,63331.0,1.12286498]
[1719864662776,0.51559938,63332.0,63331.0,1.13686498]
[1719864664059,0.56909938,63332.0,63331.0,1.13686498]
[1719864664975,0.51559938,63332.0,63331.0,1.13686498]
[1719864665205,0.01737188,63332.0,63331.0,1.45816598]
[1719864665411,0.01737188,63332.0,63331.0,1.45266598]
[1719864665617,0.01737188,63332.0,63331.0,1.45816598]
[1719864668322,0.01737188,63332.0,63331.0,1.45266598]
[1719864669417,0.01737188,63332.0,63331.0,1.45816598]
[1719864669814,0.00204,63332.0,63331.0,1.45816598]
[1719864671330,0.00204,63332.0,63331.0,1.45266598]
[1719864671603,0.00204,63332.0,63331.0,1.45816598]
[1719864672688,0.00204,63332.0,63331.0,1.45266598]
[1719864673655,0.00204,63332.0,63331.0,2.06235968]
[1719864673845,0.00204,63332.0,63331.0,2.60932108]
[1719864674170,0.00204,63332.0,63331.0,2.6802724]
[1719864674758,0.00204,63332.0,63331.0,2.59532108]
[1719864674898,0.00104,63332.0,63331.0,2.58432108]
[1719864675087,0.00104,63332.0,63331.0,2.59832108]
[1719864675493,0.00104,63332.0,63331.0,2.58432108]
[1719864675916,0.00104,63332.0,63331.0,2.59832108]
[1719864676279,0.00104,63332.0,63331.0,2.46716068]
[1719864676484,0.00104,63332.0,63331.0,2.65958484]
[1719864677945,0.00104,63332.0,63331.0,2.65998484]
[1719864678486,0.00104,63332.0,63331.0,2.61271639]
[1719864678697,0.00104,63332.0,63331.0,2.65998484]
[1719864678884,0.00104,63332.0,63331.0,2.61271639]
[1719864679088,0.00104,63332.0,63331.0,2.70726595]
[1719864679300,0.00104,63332.0,63331.0,2.61271639]
[1719864679503,0.00104,63332.0,63331.0,2.70719392]
[1719864679706,0.00104,63332.0,63331.0,2.48156068]
[1719864679904,0.00104,63332.0,63331.0,2.61270564]
[1719864680119,0.00104,63332.0,63331.0,2.48156068]
[1719864680251,0.00104,63332.0,63331.0,2.6127056]
[1719864680469,0.00104,63332.0,63331.0,2.68354605]
[1719864680670,0.00104,63332.0,63331.0,2.68314605]
[1719864681176,0.00104,63332.0,63331.0,2.68354605]
[1719864681576,0.00104,63332.0,63331.0,2.6127056]
[1719864682832,0.00104,63332.0,63331.0,2.63110887]
[1719864683644,0.00104,63332.0,63331.0,2.67831318]
[1719864686136,0.00104,63332.0,63331.0,2.63110851]
[1719864686362,0.00104,63332.0,63331.0,2.67830303]
[1719864688236,0.00104,63332.0,63331.0,2.63110851]
[1719864688544,0.00104,63332.0,63331.0,2.67830303]
[1719864689365,0.00104,63332.0,63331.0,2.67829405]
[1719864691191,0.00104,63332.0,63331.0,3.35846048]
[1719864691788,0.00104,63332.0,63331.0,2.63110851]
[1719864691993,0.00104,63332.0,63331.0,2.61710851]
[1719864692174,0.00104,63332.0,63331.0,2.60310851]
[1719864692376,0.00304,63332.0,63331.0,2.65128957]
[1719864692738,0.00304,63332.0,63331.0,2.93296493]
[1719864693298,0.00304,63332.0,63331.0,2.9801461]
[1719864693707,0.00304,63332.0,63331.0,2.93296493]
[1719864695223,0.00304,63332.0,63331.0,2.93296192]
[1719864695835,0.00304,63332.0,63331.0,2.93296071]
[1719864696558,0.00304,63332.0,63331.0,3.00373852]
[1719864699059,0.00304,63332.0,63331.0,2.80181841]
[1719864699259,0.00304,63332.0,63331.0,3.00375427]
[1719864699784,0.00304,63332.0,63331.0,2.93296071]
[1719864700489,0.00304,63332.0,63331.0,3.02735213]
[1719864701455,0.00304,63332.0,63331.0,2.93296071]
[1719864702127,0.1651,63351.0,63350.0,1.420677]
[1719864702348,0.1651,63351.0,63350.0,1.75261598]
[1719864702483,0.1651,63351.0,63350.0,1.88374551]
[1719864702903,0.1651,63351.0,63350.0,1.94694251]
[1719864703538,0.1651,63351.0,63350.0,1.95694251]
[1719864703871,0.1651,63351.0,63350.0,1.96194251]
[1719864705089,0.00822002,63353.0,63352.0,1.506132]
[1719864705253,0.00822002,63353.0,63352.0,2.73994105]
[1719864705457,0.00822002,63353.0,63352.0,2.6920215]
[1719864705661,0.00822002,63353.0,63352.0,3.34099883]
[1719864705813,0.00822002,63353.0,63352.0,3.34237133]
[1719864706015,0.00822002,63353.0,63352.0,3.52697019]
[1719864706285,0.00822002,63353.0,63352.0,3.66506322]
[1719864706490,0.00822002,63353.0,63352.0,3.53497019]
[1719864706628,0.00822002,63353.0,63352.0,3.53397019]
[1719864706840,0.00822002,63353.0,63352.0,3.80945019]
[1719864707040,0.00822002,63353.0,63352.0,3.81045019]
[1719864708211,0.00822002,63353.0,63352.0,3.81145019]
[1719864708338,0.00822002,63353.0,63352.0,3.81342391]
[1719864708765,0.00822002,63353.0,63352.0,3.81658187]
[1719864709563,0.00822002,63353.0,63352.0,3.94766581]
[1719864709769,0.00822002,63353.0,63352.0,3.94569209]
[1719864710352,0.00822002,63353.0,63352.0,3.94253413]
[1719864710919,0.00822002,63353.0,63352.0,3.81045019]
[1719864711051,0.00822002,63353.0,63352.0,3.94143851]
[1719864711695,0.00822002,63353.0,63352.0,2.8536055]
[1719864711906,0.00822002,63353.0,63352.0,2.9181055]
[1719864712066,0.00822002,63353.0,63352.0,2.9171055]
[1719864712272,0.00822002,63353.0,63352.0,2.9170055]
[1719864712824,0.00822002,63353.0,63352.0,2.9180055]
[1719864713176,0.00822002,63353.0,63352.0,2.9160055]
[1719864713375,0.00822002,63353.0,63352.0,2.9180055]
[1719864713540,0.00822002,63353.0,63352.0,2.6019095]
[1719864714290,0.00822002,63353.0,63352.0,2.62004971]
[1719864714717,0.00822002,63353.0,63352.0,2.71442888]
[1719864714922,0.00822002,63353.0,63352.0,2.61904971]
[1719864715119,0.00822002,63353.0,63352.0,2.61914971]
[1719864715573,0.00822002,63353.0,63352.0,2.68893278]
[1719864715859,0.00822002,63353.0,63352.0,2.61914971]
[1719864716073,0.00822002,63353.0,63352.0,2.61924971]
[1719864716218,0.00822002,63353.0,63352.0,2.61824971]
[1719864716425,0.00822002,63353.0,63352.0,2.61924971]
[1719864716426,0.02122002,63353.0,63352.0,2.61924971]
[1719864716629,0.18532002,63353.0,63352.0,2.55477721]
[1719864716835,0.18532002,63353.0,63352.0,2.61659951]
[1719864717037,0.18532002,63353.0,63352.0,2.0335633]
[1719864717241,0.18532002,63353.0,63352.0,1.87947498]
[1719864717643,0.19966885,63353.0,63352.0,1.87947498]
[1719864718243,0.19966885,63353.0,63352.0,1.87847498]
[1719864718446,0.19976885,63353.0,63352.0,1.97847498]
[1719864718645,0.20076885,63353.0,63352.0,1.97847498]
[1719864719037,0.21476885,63353.0,63352.0,1.97847498]
[1719864719239,0.20076885,63353.0,63352.0,1.97747498]
[1719864719435,0.20176885,63353.0,63352.0,1.98447498]
[1719864719642,0.20276885,63353.0,63352.0,1.98547498]
[1719864720715,0.20276885,63353.0,63352.0,1.99057498]
[1719864720863,0.20276885,63353.0,63352.0,1.58057498]
[1719864722261,0.02432002,63353.0,63352.0,1.89844868]
[1719864722473,0.02432002,63353.0,63352.0,1.99244868]
[1719864722894,0.02432002,63353.0,63352.0,1.92184868]
[1719864723092,0.02432002,63353.0,63352.0,1.96866134]
[1719864723293,0.02432002,63353.0,63352.0,1.92184868]
[1719864723499,0.02432002,63353.0,63352.0,1.99226253]
[1719864724589,0.02432002,63353.0,63352.0,1.92144868]
[1719864724777,0.02442002,63353.0,63352.0,1.92184868]
[1719864724976,0.02442002,63353.0,63352.0,2.23754468]
[1719864725269,0.02442002,63353.0,63352.0,1.92184868]
[1719864726461,0.02442002,63353.0,63352.0,2.23754468]
[1719864726634,0.02442002,63353.0,63352.0,2.28474885]
[1719864727435,0.02442002,63353.0,63352.0,2.23754468]
[1719864728800,0.02442002,63353.0,63352.0,2.23714468]
[1719864729018,0.02442002,63353.0,63352.0,2.23754468]
[1719864729688,0.02442002,63353.0,63352.0,2.23714468]
[1719864730133,0.02442002,63353.0,63352.0,2.23754468]
[1719864730509,0.02442002,63353.0,63352.0,2.28474955]
[1719864731072,0.02442002,63353.0,63352.0,2.23754468]
[1719864731402,0.02442002,63353.0,63352.0,2.30972263]
[1719864731656,0.02442002,63353.0,63352.0,2.9617029]
[1719864731853,0.02442002,63353.0,63352.0,2.9479169]
[1719864732002,0.02442002,63353.0,63352.0,3.06592598]
[1719864732429,0.02442002,63353.0,63352.0,2.9479169]
[1719864732629,0.02442002,63353.0,63352.0,3.06592144]
[1719864732800,0.02342002,63353.0,63352.0,3.05892144]
[1719864733035,0.03742002,63353.0,63352.0,3.05992137]
[1719864733447,0.02342002,63353.0,63352.0,3.05992137]
[1719864733624,0.02242002,63353.0,63352.0,3.05892137]
[1719864734253,0.02242002,63353.0,63352.0,3.00399737]
[1719864735151,0.02642002,63353.0,63352.0,2.93975437]
[1719864735690,0.02642002,63353.0,63352.0,2.93976261]
[1719864736595,0.02642002,63353.0,63352.0,2.90789661]
[1719864738387,0.02642002,63353.0,63352.0,2.81879661]
[1719864738714,0.02642002,63353.0,63352.0,2.5602669]
[1719864738991,0.02642002,63353.0,63352.0,2.6247669]
[1719864739505,0.02642002,63353.0,63352.0,2.71919967]
[1719864740283,0.02642002,63353.0,63352.0,2.33900367]
[1719864740504,0.02642002,63353.0,63352.0,2.05176475]
[1719864740702,0.02642002,63353.0,63352.0,1.98092118]
[1719864741380,0.02642002,63353.0,63352.0,2.05176475]
[1719864742024,0.02642002,63353.0,63352.0,1.98092118]
[1719864742219,0.02642002,63353.0,63352.0,2.05177947]
[1719864742917,0.02642002,63353.0,63352.0,2.04667947]
[1719864743345,0.02642002,63353.0,63352.0,1.91034868]
[1719864743346,0.18612002,63353.0,63352.0,1.91034868]
[1719864743546,0.18612002,63353.0,63352.0,1.65657498]
[1719864743547,0.20047339,63353.0,63352.0,1.65657498]
[1719864743767,0.18612002,63353.0,63352.0,1.65657498]
[1719864744065,0.48572002,63353.0,63352.0,1.65657498]
[1719864744266,0.53962002,63353.0,63352.0,1.65657498]
[1719864744424,0.50007339,63353.0,63352.0,1.65657498]
[1719864745305,0.50007339,63353.0,63352.0,1.65749898]
[1719864746440,0.55397339,63353.0,63352.0,1.31880298]
[1719864746652,0.55397339,63353.0,63352.0,1.25470298]
[1719864748375,0.55397339,63353.0,63352.0,0.93900698]
[1719864748570,0.55397339,63353.0,63352.0,0.42331098]
[1719864748980,0.55397339,63353.0,63352.0,0.002124]
[1719864748981,0.56997339,63353.0,63352.0,0.002124]
[1719864749195,1.61378972,63353.0,63352.0,0.002124]
[1719864749405,1.92948072,63353.0,63352.0,0.002124]
[1719864749601,1.92548072,63353.0,63352.0,0.001124]
[1719864749958,1.92648072,63353.0,63352.0,0.015124]
[1719864750114,1.92548072,63353.0,63352.0,0.001124]
[1719864750317,1.92548072,63353.0,63346.0,0.063204]
[1719864750318,1.4805308,63347.0,63346.0,0.063204]
[1719864750528,1.4805308,63347.0,63341.0,0.47591475]
[1719864750529,0.5105,63342.0,63341.0,0.47591475]
[1719864750732,0.5105,63341.0,63340.0,0.473633]
[1719864750930,0.52476912,63341.0,63340.0,0.63597198]
[1719864751449,0.52476912,63341.0,63340.0,0.73597198]
[1719864751668,0.52476912,63341.0,63340.0,0.42021598]
[1719864751850,0.82259142,63341.0,63340.0,0.1]